fUST/lending_fUST_20250102
["ID","MTS","AMOUNT","RATE_DAILY","PERIOD"]
[347439414,1735811437316,-500.0,0.00019178,2]
[347439415,1735811437325,-500.0,0.00019178,2]
[347439416,1735811437334,-285.7357032,0.00019178,2]
[347439417,1735811437346,-214.2642968,0.00019178,2]
[347439418,1735811437355,-500.0,0.00019178,2]
[347439419,1735811437364,-500.0,0.00019178,2]
[347439420,1735811437374,-500.0,0.00019178,2]
[347439421,1735811437383,-500.0,0.00019178,2]
[347439422,1735811437392,-500.0,0.00019178,2]
[347439423,1735811437401,-500.0,0.00019178,2]
[347439424,1735811437410,-500.0,0.00019178,2]
[347439425,1735811437419,-500.0,0.00019178,2]
[347439426,1735811437428,-500.0,0.00019178,2]
[347439427,1735811437438,-500.0,0.00019178,2]
[347439428,1735811437447,-301.14,0.00019178,2]
[347439429,1735811437456,-357.6170605,0.00019178,2]
[347439430,1735811437466,-360.56830152,0.00019178,2]
[347439432,1735811438534,-161.98292503,0.00019173,2]
[347439433,1735811438544,-139.43169848,0.00019178,2]
[347439434,1735811438554,-500.0,0.00019178,2]
[347439435,1735811438563,-500.0,0.00019178,2]
[347439436,1735811438572,-500.0,0.00019178,2]
[347439437,1735811438582,-287.4,0.00019178,2]
[347439438,1735811438591,-500.63419069,0.00019178,2]
[347439439,1735811438600,-500.0,0.00019178,2]
[347439440,1735811438609,-500.0,0.00019178,2]
[347439441,1735811438618,-504.78633704,0.00019178,2]
[347439442,1735811438628,-500.0,0.00019178,2]
[347439443,1735811438638,-500.0,0.00019178,2]
[347439444,1735811438647,-502.10660046,0.00019178,2]
[347439445,1735811438656,-500.0,0.00019178,2]
[347439446,1735811438666,-500.0,0.00019178,2]
[347439447,1735811438676,-500.0,0.00019178,2]
[347439448,1735811438686,-170.943472,0.00019178,2]
[347439449,1735811438695,-297.74,0.00019452,3]
[347439450,1735811438704,-263.94,0.00019452,3]
[347439451,1735811438713,-299.76,0.00019452,3]
[347439452,1735811438724,-323.47,0.00019452,3]
[347439453,1735811438734,-205.33,0.00019452,3]
[347439454,1735811438743,-376.93,0.00019452,3]
[347439455,1735811438752,-500.0,0.00019452,3]
[347439456,1735811438763,-1135.33,0.00019452,3]
[347439457,1735811438772,-500.0,0.00019452,3]
[347439458,1735811438782,-500.0,0.00019452,3]
[347439459,1735811438791,-500.0,0.00019452,3]
[347439460,1735811438800,-500.0,0.00019452,3]
[347439461,1735811438810,-500.0,0.00019452,3]
[347439462,1735811438819,-500.0,0.00019452,2]
[347439463,1735811438828,-500.0,0.00019452,3]
[347439464,1735811438945,-500.0,0.00019452,3]
[347439465,1735811438955,-862.65,0.00019452,3]
[347439466,1735811438964,-500.0,0.00019452,3]
[347439467,1735811438973,-6453.14,0.00019452,3]
[347439468,1735811438984,-500.0,0.00019452,2]
[347439469,1735811438993,-306.05,0.00019452,3]
[347439470,1735811439002,-500.0,0.00019452,3]
[347439471,1735811439012,-500.69814283,0.00019452,3]
[347439472,1735811439021,-4285.19,0.00019452,3]
[347439473,1735811439031,-500.0,0.00019452,3]
[347439474,1735811439040,-500.0,0.00019452,3]
[347439475,1735811439051,-229.66446793,0.00019452,3]
[347439476,1735811439064,-270.33553207,0.00019452,3]
[347439477,1735811439073,-590.88250677,0.00019452,3]
[347439478,1735811439083,-500.0,0.00019452,3]
[347439479,1735811439092,-500.0,0.00019452,3]
[347439480,1735811439101,-500.0,0.00019452,3]
[347439481,1735811439110,-316.46,0.000197,2]
[347439482,1735811439120,-500.0,0.00019726,3]
[347439483,1735811439129,-1135.33,0.00019726,3]
[347439484,1735811439138,-500.0,0.00019726,3]
[347439485,1735811439147,-500.0,0.00019726,3]
[347439486,1735811439156,-500.0,0.00019726,3]
[347439487,1735811439165,-500.0,0.00019726,3]
[347439488,1735811439175,-500.0,0.00019726,3]
[347439489,1735811439184,-614.37,0.00019726,3]
[347439490,1735811439193,-862.65,0.00019726,3]
[347439491,1735811439202,-500.0,0.00019726,3]
[347439492,1735811439212,-6453.14,0.00019726,3]
[347439493,1735811439221,-500.0,0.00019726,3]
[347439494,1735811439231,-4285.19,0.00019726,3]
[347439495,1735811439240,-500.0,0.00019726,3]
[347439496,1735811439249,-500.0,0.00019726,3]
[347439497,1735811439260,-239.92,0.00019726,3]
[347439498,1735811439270,-608.96773744,0.00019726,3]
[347439499,1735811439279,-500.0,0.00019726,3]
[347439500,1735811439288,-500.0,0.00019726,3]
[347439501,1735811439297,-410.76563456,0.00019732,2]
[347439502,1735811439307,-501.17272382,0.00019732,2]
[347439503,1735811439316,-163.04571342,0.00019826,2]
[347439504,1735811439325,-420.0,0.00019874,2]
[347439505,1735811439335,-24602.31284667,0.000199,2]
[347439506,1735811439344,-500.0,0.0002,3]
[347439507,1735811439353,-1135.33,0.0002,3]
[347439508,1735811439362,-500.0,0.0002,3]
[347439509,1735811439372,-500.0,0.0002,3]
[347439510,1735811439381,-500.0,0.0002,3]
[347439511,1735811439391,-500.0,0.0002,3]
[347439512,1735811439400,-500.0,0.0002,3]
[347439513,1735811439409,-862.65,0.0002,3]
[347439514,1735811439418,-500.0,0.0002,3]
[347439515,1735811439428,-6453.14,0.0002,3]
[347439516,1735811439437,-500.0,0.0002,3]
[347439517,1735811439447,-4285.19,0.0002,3]
[347439518,1735811439456,-500.0,0.0002,3]
[347439519,1735811439465,-500.0,0.0002,3]
[347439520,1735811439475,-500.0,0.0002,3]
[347439521,1735811439484,-500.0,0.00020273,3]
[347439522,1735811439493,-1135.33,0.00020273,3]
[347439523,1735811439501,-500.0,0.00020273,3]
[347439524,1735811439511,-509.13755113,0.00020273,3]
[347439525,1735811439519,-500.0,0.00020273,3]
[347439526,1735811439528,-500.0,0.00020273,3]
[347439527,1735811439538,-500.0,0.00020273,3]
[347439528,1735811439547,-862.65,0.00020273,3]
[347439529,1735811439556,-500.0,0.00020273,3]
[347439530,1735811439565,-6453.14,0.00020273,3]
[347439531,1735811439574,-500.0,0.00020273,3]
[347439532,1735811439583,-499.0,0.00020273,2]
[347439533,1735811439592,-4285.19,0.00020273,3]
[347439534,1735811439602,-500.0,0.00020273,3]
[347439535,1735811439611,-500.0,0.00020273,3]
[347439536,1735811439620,-500.0,0.00020273,3]
[347439537,1735811439630,-500.0,0.00020547,3]
[347439538,1735811439640,-1135.33,0.00020547,3]
[347439539,1735811439648,-152.77919217,0.00020547,3]
[347439540,1735811439657,-500.0,0.00020547,3]
[347439541,1735811439666,-3.225265,0.00020547,3]
[347439594,1735811446660,-500.0,0.00019178,2]
[347439595,1735811446669,-500.0,0.00019178,2]
[347439596,1735811446678,-500.0,0.00019452,3]
[347439597,1735811446687,-500.0,0.00019452,3]
[347439598,1735811446696,-581.5,0.00019726,3]
[347439599,1735811446705,-500.0,0.00019726,3]
[347439600,1735811446714,-500.0,0.0002,3]
[347439601,1735811446723,-500.0,0.00020273,3]
[347439602,1735811446732,-496.774735,0.00020547,3]
[347439603,1735811446741,-500.0,0.00020547,3]
[347439604,1735811446751,-862.65,0.00020547,3]
[347439605,1735811446760,-211.76336264,0.00020547,3]
[347439609,1735811626328,163.750157,0.00013973,2]
[347439627,1735812525825,10000.0,0.00025,120]
[347439628,1735812526290,163.750157,0.00013973,2]
[347439630,1735812543711,535.56,0.00025,120]
[347439653,1735812635114,-500.0,0.00017318,6]
[347439654,1735812635124,-688.9458687,0.0001821,2]
[347439655,1735812635134,-190.21999899,0.00019078,2]
[347439656,1735812635143,-500.0,0.00019173,2]
[347439657,1735812635153,-500.9136577,0.00019173,2]
[347439658,1735812635162,-501.73054357,0.00019178,2]
[347439659,1735812635172,-569.88788877,0.00019178,2]
[347439660,1735812635181,-500.0,0.00019178,2]
[347439661,1735812635190,-500.0,0.00019178,2]
[347439662,1735812635200,-500.0,0.00019178,2]
[347439663,1735812635209,-500.0,0.00019178,2]
[347439664,1735812635218,-500.0,0.00019178,2]
[347439665,1735812635228,-501.00862458,0.00019178,2]
[347439666,1735812635239,-507.4433533,0.00019178,2]
[347439667,1735812635249,-500.0,0.00019178,2]
[347439668,1735812635258,-636.98,0.00019178,2]
[347439669,1735812635267,-500.0,0.00019178,2]
[347439670,1735812635276,-500.0,0.00019178,2]
[347439671,1735812635285,-602.51,0.00019178,2]
[347439672,1735812635294,-500.0,0.00019178,2]
[347439673,1735812635303,-500.0,0.00019178,2]
[347439674,1735812635312,-500.0,0.00019178,2]
[347439675,1735812635321,-266.64130418,0.00019178,2]
[347439676,1735812635331,-637.88,0.00019178,2]
[347439677,1735812635340,-500.0,0.00019178,2]
[347439678,1735812635349,-500.0,0.00019178,2]
[347439679,1735812635358,-598.67132735,0.00019178,2]
[347439680,1735812635367,-500.0,0.00019178,2]
[347439681,1735812635376,-500.0,0.00019178,2]
[347439682,1735812635385,-500.0,0.00019178,2]
[347439683,1735812635395,-500.0,0.00019178,2]
[347439684,1735812635404,-503.17145217,0.00019178,2]
[347439685,1735812635413,-500.0,0.00019178,2]
[347439686,1735812635542,-500.0,0.00019178,2]
[347439687,1735812635551,-500.0,0.00019178,2]
[347439688,1735812635563,-500.0,0.00019178,2]
[347439689,1735812635573,-500.0,0.00019178,2]
[347439690,1735812635586,-535.39,0.00019178,2]
[347439691,1735812635596,-500.0,0.00019178,2]
[347439692,1735812635606,-500.0,0.00019178,2]
[347439693,1735812635616,-500.0,0.00019178,2]
[347439694,1735812635625,-524.24,0.00019178,2]
[347439695,1735812635637,-480.93022324,0.00019178,2]
[347439696,1735812635646,-500.0,0.00019178,2]
[347439697,1735812635656,-500.0,0.00019178,2]
[347439698,1735812635665,-500.0,0.00019178,2]
[347439699,1735812635675,-500.0,0.00019178,2]
[347439700,1735812635684,-500.0,0.00019178,2]
[347439701,1735812635694,-500.0,0.00019178,2]
[347439702,1735812635703,-500.0,0.00019178,2]
[347439703,1735812635712,-500.0,0.00019178,2]
[347439704,1735812635722,-500.0,0.00019178,2]
[347439705,1735812635733,-500.0,0.00019178,2]
[347439706,1735812635742,-500.0,0.00019178,2]
[347439707,1735812635751,-500.0,0.00019178,2]
[347439708,1735812635760,-535.16398584,0.00019178,2]
[347439709,1735812635770,-268.9989584,0.00019178,2]
[347439710,1735812635779,-500.0,0.00019178,2]
[347439711,1735812635789,-500.0,0.00019178,2]
[347439712,1735812635798,-500.0,0.00019178,2]
[347439713,1735812635808,-500.0,0.00019178,2]
[347439714,1735812635818,-500.0,0.00019178,2]
[347439715,1735812635827,-174.49206987,0.00019178,2]
[347439716,1735812635837,-500.0,0.00019178,2]
[347439717,1735812635849,-281.83777426,0.00019178,2]
[347439718,1735812635863,-218.16222574,0.00019178,2]
[347439719,1735812635873,-500.0,0.00019178,2]
[347439720,1735812635881,-500.0,0.00019178,2]
[347439721,1735812635891,-500.0,0.00019178,2]
[347439722,1735812635900,-177.0,0.00019178,2]
[347439723,1735812635909,-309.90049118,0.00019178,2]
[347439724,1735812635918,-500.0,0.00019178,2]
[347439725,1735812635927,-500.0,0.00019178,2]
[347439726,1735812635936,-500.0,0.00019178,2]
[347439727,1735812635946,-500.0,0.00019178,2]
[347439728,1735812635955,-617.0,0.00019178,2]
[347439729,1735812635964,-500.0,0.00019178,2]
[347439730,1735812635973,-571.64537705,0.00019178,2]
[347439731,1735812635984,-500.0,0.00019178,2]
[347439732,1735812635993,-516.07,0.00019178,2]
[347439733,1735812636002,-500.0,0.00019178,2]
[347439734,1735812636011,-500.0,0.00019178,2]
[347439735,1735812636020,-500.0,0.00019178,2]
[347439736,1735812636029,-500.0,0.00019178,2]
[347439737,1735812636038,-500.0,0.00019178,2]
[347439738,1735812636047,-500.0,0.00019178,2]
[347439739,1735812636057,-332.11562887,0.00019178,2]
[347439740,1735812636066,-500.0,0.00019178,2]
[347439741,1735812636075,-500.0,0.00019178,2]
[347439742,1735812636084,-500.0,0.00019178,2]
[347439743,1735812636093,-500.0,0.00019178,2]
[347439744,1735812636103,-551.84,0.00019178,2]
[347439745,1735812636112,-500.0,0.00019178,2]
[347439746,1735812636121,-500.0,0.00019178,2]
[347439747,1735812636130,-500.0,0.00019178,2]
[347439748,1735812636139,-500.0,0.00019178,2]
[347439749,1735812636148,-500.0,0.00019178,2]
[347439750,1735812636157,-500.0,0.00019178,2]
[347439751,1735812636167,-500.0,0.00019178,2]
[347439752,1735812636176,-500.0,0.00019178,2]
[347439753,1735812636184,-544.52,0.00019178,2]
[347439754,1735812636193,-500.0,0.00019178,2]
[347439755,1735812636202,-458.64782058,0.00019178,2]
[347439756,1735812636212,-500.0,0.00019178,2]
[347439757,1735812636221,-5229.5,0.00019178,2]
[347439758,1735812636230,-500.0,0.00019178,2]
[347439759,1735812636241,-500.0,0.00019178,2]
[347439760,1735812636252,-500.0,0.00019178,2]
[347439761,1735812636261,-500.0,0.00019178,2]
[347439762,1735812636270,-500.0,0.00019178,2]
[347439763,1735812636280,-323.10782408,0.00019178,2]
[347439764,1735812636296,-176.89217592,0.00019178,2]
[347439765,1735812636305,-500.0,0.00019178,2]
[347439766,1735812636314,-617.88,0.00019178,2]
[347439767,1735812636323,-500.0,0.00019178,2]
[347439768,1735812636332,-500.0,0.00019178,2]
[347439769,1735812636341,-500.0,0.00019178,2]
[347439770,1735812636350,-500.0,0.00019178,2]
[347439771,1735812636359,-500.0,0.00019178,2]
[347439772,1735812636368,-500.0,0.00019178,2]
[347439773,1735812636377,-500.0,0.00019178,2]
[347439774,1735812636386,-500.0,0.00019178,2]
[347439775,1735812636395,-500.0,0.00019178,2]
[347439776,1735812636403,-500.0,0.00019178,2]
[347439777,1735812636413,-500.0,0.00019178,2]
[347439778,1735812636422,-500.0,0.00019178,2]
[347439779,1735812636431,-500.0,0.00019178,2]
[347439780,1735812636440,-500.0,0.00019178,2]
[347439781,1735812636450,-500.0,0.00019178,2]
[347439782,1735812636459,-201.58918848,0.00019178,2]
[347439783,1735812636468,-636.04,0.00019178,2]
[347439784,1735812636477,-501.49554286,0.00019178,2]
[347439785,1735812636487,-500.0,0.00019178,2]
[347439786,1735812636496,-500.0,0.00019178,2]
[347439787,1735812636505,-500.0,0.00019178,2]
[347439788,1735812636514,-5151.21,0.00019178,2]
[347439789,1735812636523,-500.0,0.00019178,2]
[347439790,1735812636532,-500.0,0.00019178,2]
[347439791,1735812636542,-500.0,0.00019178,2]
[347439792,1735812636551,-543.79,0.00019178,2]
[347439793,1735812636561,-500.0,0.00019178,2]
[347439794,1735812636571,-1636.33,0.00019178,2]
[347439795,1735812636580,-500.0,0.00019178,2]
[347439796,1735812636590,-500.0,0.00019178,2]
[347439797,1735812636599,-500.0,0.00019178,2]
[347439798,1735812636609,-500.0,0.00019178,2]
[347439799,1735812636619,-500.0,0.00019178,2]
[347439800,1735812636628,-500.0,0.00019178,2]
[347439801,1735812636640,-500.0,0.00019178,2]
[347439802,1735812636650,-500.0,0.00019178,2]
[347439803,1735812636659,-500.0,0.00019178,2]
[347439804,1735812636668,-646.99,0.00019178,2]
[347439805,1735812636677,-500.0,0.00019178,2]
[347439806,1735812636687,-500.0,0.00019178,2]
[347439807,1735812636696,-500.0,0.00019178,2]
[347439808,1735812636705,-500.0,0.00019178,2]
[347439809,1735812636715,-500.0,0.00019178,2]
[347439810,1735812636724,-500.0,0.00019178,2]
[347439811,1735812636734,-500.0,0.00019178,2]
[347439812,1735812636743,-500.0,0.00019178,2]
[347439813,1735812636752,-500.0,0.00019178,2]
[347439814,1735812636762,-500.0,0.00019178,2]
[347439815,1735812636771,-500.0,0.00019178,2]
[347439816,1735812636781,-531.01,0.00019178,2]
[347439817,1735812636790,-640.58,0.00019178,2]
[347439818,1735812636799,-500.0,0.00019178,2]
[347439819,1735812636809,-500.0,0.00019178,2]
[347439820,1735812636818,-500.0,0.00019178,2]
[347439821,1735812636827,-500.0,0.00019178,2]
[347439822,1735812636836,-500.0,0.00019178,2]
[347439823,1735812636846,-500.0,0.00019178,2]
[347439824,1735812636855,-500.0,0.00019178,2]
[347439825,1735812636865,-500.0,0.00019178,2]
[347439826,1735812636874,-500.0,0.00019178,2]
[347439827,1735812636884,-154.46,0.00019178,2]
[347439828,1735812636893,-166.555737,0.00019178,2]
[347439829,1735812636902,-376.04569258,0.00019352,2]
[347439830,1735812636912,-500.0,0.00019452,3]
[347439831,1735812636921,-516.89,0.00019452,3]
[347439832,1735812636930,-230.77,0.00019452,3]
[347439833,1735812636939,-500.0,0.00019452,3]
[347439834,1735812636948,-552.6,0.00019452,3]
[347439835,1735812636958,-441.7,0.00019452,3]
[347439836,1735812636968,-419.17,0.00019452,3]
[347439837,1735812636977,-304.24,0.00019452,3]
[347439838,1735812636986,-204.28,0.00019452,3]
[347439839,1735812636996,-500.0,0.00019452,3]
[347439840,1735812637006,-500.0,0.00019452,3]
[347439841,1735812637016,-358.89,0.00019452,3]
[347439842,1735812637026,-152.14,0.00019452,3]
[347439843,1735812637035,-382.45,0.00019452,3]
[347439844,1735812637045,-179.09,0.00019452,3]
[347439845,1735812637054,-500.0,0.00019452,3]
[347439846,1735812637064,-500.0,0.00019452,3]
[347439847,1735812637073,-500.0,0.00019452,3]
[347439848,1735812637083,-500.0,0.00019452,3]
[347439849,1735812637092,-603.17,0.00019452,3]
[347439850,1735812637102,-226.72,0.00019452,3]
[347439851,1735812637112,-260.62,0.00019452,3]
[347439852,1735812637122,-161.36,0.00019452,3]
[347439853,1735812637131,-238.6,0.00019452,3]
[347439854,1735812637140,-5229.5,0.00019452,3]
[347439855,1735812637149,-540.17,0.00019452,3]
[347439856,1735812637159,-500.0,0.00019452,3]
[347439857,1735812637168,-617.88,0.00019452,3]
[347439858,1735812637177,-221.84,0.00019452,3]
[347439859,1735812637187,-229.87,0.00019452,3]
[347439860,1735812637196,-500.0,0.00019452,3]
[347439861,1735812637205,-500.0,0.00019452,3]
[347439862,1735812637214,-348.92,0.00019452,3]
[347439863,1735812637223,-226.15,0.00019452,3]
[347439864,1735812637233,-500.0,0.00019452,3]
[347439865,1735812637248,-500.0,0.00019452,3]
[347439866,1735812637259,-5151.21,0.00019452,3]
[347439867,1735812637269,-500.0,0.00019452,3]
[347439868,1735812637279,-1636.33,0.00019452,3]
[347439869,1735812637289,-1636.33,0.00019452,3]
[347439870,1735812637299,-500.0,0.00019452,3]
[347439871,1735812637310,-500.0,0.00019452,3]
[347439872,1735812637319,-500.0,0.00019452,3]
[347439873,1735812637328,-500.0,0.00019452,3]
[347439874,1735812637338,-500.0,0.00019452,3]
[347439875,1735812637348,-646.99,0.00019452,3]
[347439876,1735812637358,-633.29454891,0.00019452,3]
[347439877,1735812637367,-500.0,0.00019452,3]
[347439878,1735812637377,-500.0,0.00019452,3]
[347439879,1735812637386,-500.0,0.00019452,3]
[347439880,1735812637396,-265.85,0.00019452,3]
[347439881,1735812637405,-500.0,0.00019452,3]
[347439882,1735812637414,-500.0,0.00019452,3]
[347439883,1735812637423,-376.04569255,0.00019557,2]
[347439884,1735812637433,-500.0,0.00019573,2]
[347439885,1735812637443,-599.81124081,0.00019599,2]
[347439886,1735812637452,-500.0,0.00019599,2]
[347439887,1735812637461,-500.0,0.00019599,2]
[347439888,1735812637471,-435.3687,0.00019599,2]
[347439889,1735812637480,-500.0,0.00019599,2]
[347439890,1735812637491,-500.0,0.00019599,2]
[347439891,1735812637500,-500.0,0.00019599,2]
[347439892,1735812637510,-500.0,0.00019599,2]
[347439893,1735812637520,-236.35373604,0.00019599,2]
[347439894,1735812637529,-200.13234612,0.00019599,2]
[347439895,1735812637539,-500.0,0.00019599,2]
[347439896,1735812637548,-500.0,0.00019599,2]
[347439897,1735812637560,-498.95372719,0.00019599,2]
[347439898,1735812637571,-500.0,0.00019599,2]
[347439899,1735812637580,-360.2908706,0.00019599,2]
[347439900,1735812637590,-500.0,0.00019599,2]
[347439901,1735812637599,-436.27949399,0.00019599,2]
[347439902,1735812637610,-457.41795852,0.000196,2]
[347439903,1735812637620,-7995.40927134,0.000196,2]
[347439904,1735812637629,-32448.69873161,0.000196,4]
[347439905,1735812637644,-85392.46515768,0.000196,4]
[347439920,1735812638919,-672.87,0.00019178,2]
[347439921,1735812638929,-672.87,0.00019452,3]
[347439922,1735812638938,-18099.2599998,0.000196,4]
[347439978,1735812640814,-2394.99999051,0.000196,4]
[347439982,1735812640842,-9564.11342339,0.000196,4]
[347440022,1735812643776,-500.0,0.00019178,2]
[347440023,1735812643786,-500.0,0.00019178,2]
[347440024,1735812643796,-6756.64242944,0.000196,4]
[347440025,1735812643870,-1779.17,0.000196,4]
[347440026,1735812643882,-3401.37,0.000196,4]
[347440046,1735812646854,-14082.65297666,0.000196,4]
[347440047,1735812646866,-7930.53705,0.000196,4]
[347440048,1735812646958,-8129.64,0.000196,4]
[347440049,1735812646969,-8812.1261202,0.000196,4]
[347440050,1735812646981,-2849.08221,0.000196,4]
[347440051,1735812646992,-2394.59998,0.000196,4]
[347440064,1735812831130,6277.2,0.00025,120]
[347440112,1735813556207,163.750157,0.00013973,2]
[347440195,1735813837885,-190.21999899,0.00019078,2]
[347440196,1735813837899,-300.0,0.00019177,2]
[347440197,1735813837909,-559.31996897,0.00019178,2]
[347440198,1735813837920,-500.0,0.00019178,2]
[347440199,1735813837930,-393.66473661,0.00019178,2]
[347440200,1735813837942,-500.0,0.00019178,2]
[347440201,1735813837952,-367.96481743,0.00019178,2]
[347440202,1735813837965,-132.03518257,0.00019178,2]
[347440203,1735813837975,-296.04481743,0.00019178,2]
[347440229,1735813841594,-203.95518257,0.00019178,2]
[347440231,1735813841605,-500.0,0.00019178,2]
[347440233,1735813841616,-7.32563054,0.00019178,2]
[347440275,1735813842964,-492.67436946,0.00019178,2]
[347440276,1735813842975,-500.0,0.00019178,2]
[347440277,1735813842984,-500.0,0.00019178,2]
[347440279,1735813842993,-500.0,0.00019178,2]
[347440281,1735813843002,-500.0,0.00019178,2]
[347440282,1735813843013,-310.3504456,0.00019178,2]
[347440284,1735813843024,-500.0,0.00019178,2]
[347440286,1735813843034,-500.0,0.00019178,2]
[347440288,1735813843043,-403.23843091,0.00019178,2]
[347440289,1735813843058,-96.76156909,0.00019178,2]
[347440290,1735813843067,-512.2131117,0.00019178,2]
[347440291,1735813843076,-160.37742549,0.00019178,2]
[347440292,1735813843085,-160.5418475,0.00019178,2]
[347440293,1735813843097,-339.4581525,0.00019178,2]
[347440294,1735813843107,-500.0,0.00019178,2]
[347440295,1735813843116,-500.0,0.00019178,2]
[347440296,1735813843125,-208.68847109,0.00019178,2]
[347440297,1735813843134,-573.9,0.00019178,2]
[347440298,1735813843144,-500.0,0.00019178,2]
[347440299,1735813843153,-500.0,0.00019178,2]
[347440300,1735813843163,-380.19423221,0.00019178,2]
[347440328,1735813845995,-249.93878224,0.00019178,2]
[347440330,1735813846006,-500.0,0.00019178,2]
[347440332,1735813846015,-352.53168918,0.00019178,2]
[347440335,1735813846029,-147.46831082,0.00019178,2]
[347440337,1735813846039,-477.31435068,0.00019178,2]
[347440362,1735814549304,170.915029,0.00013973,2]
[347440393,1735815032260,-720.23895855,0.00018203,3]
[347440400,1735815032323,-5949.02261287,0.00018203,3]
[347440402,1735815032334,-300.0,0.00018203,2]
[347440404,1735815032349,-631.0,0.00018203,2]
[347440406,1735815032359,-228.70897926,0.00018204,2]
[347440408,1735815032370,-3997.70463567,0.00018204,2]
[347440410,1735815032380,-24900.0,0.00018204,2]
[347440412,1735815032390,-764.975697,0.00018221,2]
[347440414,1735815032399,-10056.02485155,0.00018955,2]
[347440416,1735815032409,-377.38747109,0.00019078,2]
[347440418,1735815032418,-371.26597043,0.00019078,2]
[347440420,1735815032427,-500.77276988,0.00019173,2]
[347440422,1735815032436,-500.0,0.00019173,2]
[347440424,1735815032446,-500.0,0.00019173,2]
[347440426,1735815032455,-186.62,0.00019177,2]
[347440428,1735815032464,-500.0,0.00019177,2]
[347440430,1735815032473,-11906.886672,0.00019177,2]
[347440432,1735815032483,-500.0,0.00019177,2]
[347440434,1735815032492,-593.09469105,0.00019177,2]
[347440436,1735815032501,-500.0,0.00019177,2]
[347440438,1735815032511,-203.54910565,0.00019177,2]
[347440440,1735815032520,-500.0,0.00019177,2]
[347440442,1735815032531,-185.50789991,0.00019177,2]
[347440444,1735815032540,-500.0,0.00019177,2]
[347440446,1735815032550,-500.0,0.00019177,2]
[347440448,1735815032559,-239.97631612,0.00019177,2]
[347440450,1735815032568,-500.0,0.00019177,2]
[347440452,1735815032578,-500.0,0.00019177,2]
[347440454,1735815032587,-500.0,0.00019177,2]
[347440456,1735815032597,-500.0,0.00019177,2]
[347440458,1735815032607,-500.0,0.00019177,2]
[347440460,1735815032616,-500.0,0.00019177,2]
[347440462,1735815032625,-500.0,0.00019177,2]
[347440464,1735815032636,-376.95416356,0.00019177,2]
[347440466,1735815032645,-500.0,0.00019177,2]
[347440468,1735815032654,-500.0,0.00019177,2]
[347440470,1735815032663,-500.0,0.00019177,2]
[347440472,1735815032673,-500.0,0.00019177,2]
[347440474,1735815032682,-485.24240012,0.00019177,2]
[347440476,1735815032692,-500.0,0.00019177,2]
[347440478,1735815032701,-500.0,0.00019177,2]
[347440480,1735815032710,-231.16655219,0.00019177,2]
[347440482,1735815032719,-500.0,0.00019177,2]
[347440484,1735815032729,-500.0,0.00019177,2]
[347440486,1735815032738,-218.09702956,0.00019178,2]
[347440488,1735815032747,-500.0,0.00019178,2]
[347440490,1735815032757,-500.0,0.00019178,2]